[Event "22nd ETCC Women 2019"]
[Site "Batumi"]
[Date "2019.10.30"]
[Round "6.6"]
[White "Khotenashvili, Bela"]
[Black "Injac, Teodora"]
[Result "1-0"]
[ECO "D45"]
[WhiteElo "2446"]
[BlackElo "2257"]
[Annotator "NA"]
[PlyCount "165"]
[EventDate "2019.10.24"]
[EventType "team-tourn"]
[EventCountry "GEO"]
[SourceTitle "playchess.com"]
[Source "ChessBase"]
[SourceQuality "1"]
[WhiteTeam "Georgia"]
[BlackTeam "Serbia"]
[WhiteTeamCountry "GEO"]
[BlackTeamCountry "SRB"]
[TimeControl "40/5400+30:1800+30"]

1. d4 Nf6 {[%emt 0:00:00]} 2. c4 {[%emt 0:00:00]} e6 3. Nf3 {[%emt 0:01:11]} d5 {[%emt 0:00:00]} 4. Nc3 {[%emt 0:02:35]} c6 {[%emt 0:00:10]} 5. e3 {[%emt 0:03:32]} Nbd7 {[%emt 0:00:20]} 6. b3 {[%emt 0:00:34]} Bd6 {[%emt 0:14:53]} 7. Bb2 {[%emt 0:00:50]} O-O {[%emt 0:01:14]} 8. Be2 {[%emt 0:00:49]} Ne4 {[%emt 0:07:56]} 9. Qc2 {[%emt 0:14:50]} f5 {[%emt 0:02:39]} 10. O-O {[%emt 0:00:41]} Qe7 {[%emt 0:23:46]} 11. Rad1 {[%emt 0:18:34]} Qf6 {[%emt 0:07:50]} 12. c5 {[%emt 0:20:29]} Bc7 {[%emt 0:02:24]} 13. b4 {[%emt 0:00:07]} g5 14. b5 g4 {[%emt 0:08:15]} 15. Nxe4 {[%emt 0:08:44]} fxe4 {[%emt 0:01:10]} 16. Ne5 {[%emt 0:15:09]} Nxe5 {[%emt 0:00:07]} 17. dxe5 {[%emt 0:00:02]} Qg5 {[%emt 0:08:32]} 18. bxc6 {[%emt 0:00:33]} bxc6 {[%emt 0:00:13]} 19. Bd4 {[%emt 0:00:49]} Bd7 {[%emt 0:10:48]} 20. Rb1 {[%emt 0:00:42]} Rab8 {[%emt 0:01:26]} 21. Rxb8 {[%emt 0:02:31]} Rxb8 {[%emt 0:03:56]} 22. Rb1 {[%emt 0:01:06]} h5 {[%emt 0:01:30]} 23. Rxb8+ {[%emt 0:00:28]} Bxb8 {[%emt 0:00:01]} 24. Qb2 {[%emt 0:00:11]} Qd8 {[%emt 0:00:18]} 25. g3 Bc7 26. Qb7 {[%emt 0:03:28]} Qb8 {[%emt 0:04:01]} 27. Qxb8+ {[%emt 0:00:02]} Bxb8 {[%emt 0:00:04]} 28. h3 {[%emt 0:00:00]} gxh3 29. Bxh5 Bc8 {[%emt 0:02:23]} 30. Kh2 {[%emt 0:04:04]} Ba6 {[%emt 0:00:07]} 31. Kxh3 {[%emt 0:00:31]} Bc7 32. Bd1 {[%emt 0:02:44]} Kg7 {[%emt 0:00:56]} 33. Kg4 {[%emt 0:00:30]} Kg6 {[%emt 0:00:24]} 34. f4 {[%emt 0:00:30]} exf3 35. Bc2+ {[%emt 0:00:00]} Kh6 {[%emt 0:01:22]} 36. Kxf3 {[%emt 0:01:06]} Bc4 {[%emt 0:00:43]} 37. a3 Bb5 {[%emt 0:00:17]} 38. Kf4 {[%emt 0:00:58]} Ba5 {[%emt 0:00:17]} 39. Bd1 {[%emt 0:00:19]} Kg6 {[%emt 0:00:37]} 40. Bg4 {[%emt 0:00:00]} Kf7 {[%emt 0:00:00]} 41. Bh5+ {[%emt 0:10:44]} Kg7 {[%emt 0:02:44]} 42. Bd1 {[%emt 0:04:33]} Bd2 {[%emt 0:03:21]} 43. g4 {[%emt 0:02:05]} a5 {[%emt 0:09:12]} 44. Kf3 {[%emt 0:05:58]} a4 {[%emt 0:07:14]} 45. Bb2 {[%emt 0:00:17]} Kg6 {[%emt 0:00:53]} 46. Bc2+ {[%emt 0:00:31]} Kg5 {[%emt 0:01:38]} 47. Bh7 {[%emt 0:01:20]} Ba6 {[%emt 0:00:32]} 48. Bg8 {[%emt 0:00:37]} Bc8 {[%emt 0:01:31]} 49. Bf7 {[%emt 0:00:11]} Bd7 {[%emt 0:00:46]} 50. Bh5 {[%emt 0:01:10]} Be1 {[%emt 0:04:15]} 51. Ke2 {[%emt 0:01:51]} Ba5 {[%emt 0:00:17]} 52. Kf3 {[%emt 0:03:10]} Be1 {[%emt 0:00:16]} 53. e4 {[%emt 0:01:30]} Bd2 {[%emt 0:02:33]} 54. Ke2 {[%emt 0:00:11]} Bf4 {[%emt 0:00:59]} 55. Kd3 {[%emt 0:00:20]} Bg3 {[%emt 0:00:33]} 56. Bc1+ {[%emt 0:00:39]} Kh4 57. Kd4 Bf2+ {[%emt 0:01:23]} 58. Be3 {[%emt 0:00:33]} Bg3 {[%emt 0:00:17]} 59. Bg1 {[%emt 0:03:41]} Kg5 {[%emt 0:00:30]} 60. exd5 cxd5 {[%emt 0:00:31]} 61. Bf7 {[%emt 0:01:16]} Kxg4 {[%emt 0:00:38]} 62. c6 {[%emt 0:00:48]} Bc8 {[%emt 0:01:09]} 63. Bg6 {[%emt 0:00:30]} Bh4 64. Be3 {[%emt 0:00:08]} Be7 {[%emt 0:01:34]} 65. Bc1 {[%emt 0:00:00]} Bd8 {[%emt 0:00:06]} 66. Kc5 {[%emt 0:01:45]} Bc7 67. Bc2 {[%emt 0:00:30]} Bxe5 {[%emt 0:00:58]} 68. Bxa4 {[%emt 0:00:01]} Kf3 {[%emt 0:00:34]} 69. Bb5 {[%emt 0:00:35]} Ke4 {[%emt 0:00:46]} 70. a4 {[%emt 0:00:04]} Bc7 {[%emt 0:00:27]} 71. Bd2 {[%emt 0:00:16]} d4 {[%emt 0:00:27]} 72. a5 {[%emt 0:00:11]} e5 {[%emt 0:00:37]} 73. a6 {[%emt 0:00:00]} Bxa6 {[%emt 0:00:30]} 74. Bxa6 {[%emt 0:00:37]} Bb8 {[%emt 0:00:36]} 75. Kc4 {[%emt 0:00:30]} Bc7 {[%emt 0:00:16]} 76. Bc8 {[%emt 0:00:23]} Kf3 77. Kd3 {[%emt 0:01:10]} Bb6 {[%emt 0:01:11]} 78. Bf5 {[%emt 0:00:16]} Bc7 {[%emt 0:00:16]} 79. Be4+ Kf2 {[%emt 0:00:04]} 80. Bd5 {[%emt 0:00:45]} Kf1 {[%emt 0:01:01]} 81. Bg5 {[%emt 0:00:43]} Ke1 82. Bf6 {[%emt 0:00:30]} Kf2 {[%emt 0:00:59]} 83. Ke4 {[%emt 0:00:07]} 1-0

[Event "22nd ETCC Women 2019"]
[Site "Batumi"]
[Date "2019.10.30"]
[Round "6.6"]
[White "Paulet, Iozefina"]
[Black "Pipia, Ekaterine"]
[Result "1-0"]
[ECO "B76"]
[WhiteElo "2288"]
[BlackElo "1935"]
[Annotator "NA"]
[PlyCount "139"]
[EventDate "2019.10.24"]
[EventType "team-tourn"]
[EventCountry "GEO"]
[SourceTitle "playchess.com"]
[Source "ChessBase"]
[SourceQuality "1"]
[WhiteTeam "Netherlands"]
[BlackTeam "Georgia"]
[WhiteTeamCountry "NED"]
[BlackTeamCountry "GEO"]
[TimeControl "40/5400+30:1800+30"]

1. e4 {[%emt 0:00:00]} c5 {[%emt 0:00:00]} 2. Nf3 {[%emt 0:00:00]} d6 {[%emt 0:00:00]} 3. d4 {[%emt 0:00:00]} cxd4 {[%emt 0:00:00]} 4. Nxd4 {[%emt 0:00:00]} Nf6 {[%emt 0:00:00]} 5. Nc3 {[%emt 0:00:00]} g6 {[%emt 0:00:00]} 6. Be3 {[%emt 0:00:15]} Bg7 {[%emt 0:00:01]} 7. f3 {[%emt 0:00:08]} O-O {[%emt 0:00:08]} 8. Qd2 {[%emt 0:00:08]} Nc6 {[%emt 0:00:06]} 9. O-O-O {[%emt 0:00:20]} d5 {[%emt 0:00:18]} 10. Nxc6 {[%emt 0:00:14]} bxc6 {[%emt 0:00:02]} 11. Bh6 {[%emt 0:00:17]} Be6 {[%emt 0:05:01]} 12. e5 {[%emt 0:27:32]} Nd7 {[%emt 0:12:48]} 13. h4 {[%emt 0:00:08]} d4 {[%emt 0:04:37]} 14. Ne4 {[%emt 0:09:06]} Rb8 {[%emt 0:02:49]} 15. h5 {[%emt 0:11:00]} Qb6 {[%emt 0:02:02]} 16. b3 {[%emt 0:00:25]} Qb4 {[%emt 0:03:07]} 17. Bxg7 {[%emt 0:13:08]} Qxd2+ {[%emt 0:04:51]} 18. Rxd2 {[%emt 0:00:04]} Kxg7 {[%emt 0:00:11]} 19. Rxd4 {[%emt 0:00:03]} Nxe5 {[%emt 0:04:47]} 20. Nc5 {[%emt 0:00:22]} Bf5 {[%emt 0:06:41]} 21. Ra4 {[%emt 0:03:43]} Ra8 {[%emt 0:05:52]} 22. Ba6 {[%emt 0:00:50]} Rad8 {[%emt 0:05:25]} 23. h6+ {[%emt 0:04:31]} Kg8 {[%emt 0:01:13]} 24. Rd1 {[%emt 0:03:27]} Rxd1+ {[%emt 0:03:12]} 25. Kxd1 {[%emt 0:00:04]} Rd8+ {[%emt 0:00:21]} 26. Kc1 {[%emt 0:00:08]} Rd5 {[%emt 0:02:48]} 27. Rb4 {[%emt 0:04:35]} f6 {[%emt 0:02:00]} 28. Na4 {[%emt 0:08:40]} Ra5 {[%emt 0:06:37]} 29. Be2 {[%emt 0:02:50]} g5 {[%emt 0:06:06]} 30. Rb7 {[%emt 0:00:32]} Kf7 {[%emt 0:01:09]} 31. Nc3 {[%emt 0:00:10]} Rc5 {[%emt 0:07:02]} 32. Kb2 {[%emt 0:00:37]} a5 {[%emt 0:00:19]} 33. a3 {[%emt 0:01:53]} Be6 {[%emt 0:08:23]} 34. g3 {[%emt 0:05:46]} Ng6 {[%emt 0:02:48]} 35. Rc7 {[%emt 0:00:21]} Ne5 {[%emt 0:02:34]} 36. b4 {[%emt 0:02:35]} axb4 {[%emt 0:00:30]} 37. axb4 {[%emt 0:00:04]} Nc4+ {[%emt 0:00:24]} 38. Kc1 {[%emt 0:00:08]} Re5 {[%emt 0:01:07]} 39. Bxc4 {[%emt 0:02:38]} Bxc4 {[%emt 0:00:24]} 40. Rxc6 {[%emt 0:00:00]} Be6 {[%emt 0:00:00]} 41. Kd2 {[%emt 0:00:27]} Bh3 {[%emt 0:04:13]} 42. Ne2 {[%emt 0:07:02]} Rb5 {[%emt 0:02:10]} 43. c3 {[%emt 0:01:05]} e5 {[%emt 0:00:12]} 44. Ke3 {[%emt 0:01:06]} Bd7 {[%emt 0:03:01]} 45. Rc7 {[%emt 0:00:19]} Ke6 {[%emt 0:00:28]} 46. Nc1 {[%emt 0:00:48]} Kd6 {[%emt 0:00:30]} 47. Ra7 {[%emt 0:00:07]} f5 {[%emt 0:00:58]} 48. Nd3 {[%emt 0:11:04]} f4+ {[%emt 0:02:35]} 49. gxf4 {[%emt 0:00:04]} exf4+ {[%emt 0:00:15]} 50. Ke2 {[%emt 0:00:55]} Bf5 {[%emt 0:00:45]} 51. Ra5 {[%emt 0:03:50]} Rxa5 {[%emt 0:02:03]} 52. bxa5 {[%emt 0:00:03]} Kc6 {[%emt 0:01:20]} 53. Ne5+ {[%emt 0:00:05]} Kb5 {[%emt 0:00:28]} 54. Nf7 {[%emt 0:00:04]} Kxa5 {[%emt 0:00:51]} 55. Nxg5 {[%emt 0:00:05]} Kb5 {[%emt 0:03:22]} 56. Ne4 {[%emt 0:00:08]} Kc6 {[%emt 0:02:40]} 57. c4 {[%emt 0:00:08]} Kd7 {[%emt 0:01:24]} 58. Kd3 {[%emt 0:00:10]} Ke6 {[%emt 0:05:10]} 59. Kd4 {[%emt 0:00:04]} Bg6 {[%emt 0:00:51]} 60. c5 {[%emt 0:02:21]} Bh5 {[%emt 0:01:30]} 61. c6 {[%emt 0:02:13]} Be8 {[%emt 0:02:38]} 62. Kc5 {[%emt 0:00:07]} Ke5 {[%emt 0:02:38]} 63. c7 {[%emt 0:00:19]} Bd7 {[%emt 0:00:12]} 64. Ng5 {[%emt 0:00:16]} Kf6 {[%emt 0:01:05]} 65. Nxh7+ {[%emt 0:00:04]} Kf7 {[%emt 0:00:17]} 66. Ng5+ {[%emt 0:00:03]} Kg6 {[%emt 0:00:14]} 67. h7 {[%emt 0:00:04]} Kg7 {[%emt 0:00:03]} 68. Kd6 {[%emt 0:00:10]} Bc8 {[%emt 0:00:12]} 69. Ke7 {[%emt 0:00:17]} Bb7 {[%emt 0:00:16]} 70. Kd8 {[%emt 0:00:05]} 1-0

[Event "22nd ETCC Women 2019"]
[Site "Batumi"]
[Date "2019.10.30"]
[Round "6.7"]
[White "Velikic, Adela"]
[Black "Arabidze, Meri"]
[Result "0-1"]
[ECO "D35"]
[WhiteElo "2275"]
[BlackElo "2398"]
[Annotator "NA"]
[PlyCount "154"]
[EventDate "2019.10.24"]
[EventType "team-tourn"]
[EventCountry "GEO"]
[SourceTitle "playchess.com"]
[Source "ChessBase"]
[SourceQuality "1"]
[WhiteTeam "Serbia"]
[BlackTeam "Georgia"]
[WhiteTeamCountry "SRB"]
[BlackTeamCountry "GEO"]
[TimeControl "40/5400+30:1800+30"]

1. d4 {[%emt 0:00:00]} d5 {[%emt 0:00:00]} 2. c4 {[%emt 0:00:00]} e6 {[%emt 0:00:00]} 3. Nc3 {[%emt 0:00:00]} Nf6 {[%emt 0:00:00]} 4. cxd5 {[%emt 0:00:00]} exd5 {[%emt 0:00:00]} 5. Bg5 {[%emt 0:00:07]} c6 {[%emt 0:00:18]} 6. e3 {[%emt 0:00:07]} Nbd7 {[%emt 0:00:22]} 7. Bd3 {[%emt 0:00:18]} Be7 {[%emt 0:00:26]} 8. Qc2 {[%emt 0:00:09]} O-O {[%emt 0:00:36]} 9. Nf3 {[%emt 0:00:23]} Re8 {[%emt 0:00:49]} 10. O-O {[%emt 0:00:25]} Nf8 {[%emt 0:00:22]} 11. h3 {[%emt 0:00:12]} g6 {[%emt 0:00:56]} 12. Bh6 {[%emt 0:02:03]} Ne6 {[%emt 0:01:42]} 13. Ne5 {[%emt 0:04:24]} Ng7 {[%emt 0:05:04]} 14. g4 {[%emt 0:02:07]} Nd7 {[%emt 0:03:24]} 15. f4 {[%emt 0:03:10]} Bf8 {[%emt 0:29:41]} 16. Qf2 {[%emt 0:08:11]} Ne6 {[%emt 0:08:50]} 17. Nxf7 {[%emt 0:41:12]} Kxf7 {[%emt 0:01:42]} 18. f5 {[%emt 0:00:07]} Bxh6 {[%emt 0:03:08]} 19. fxg6+ {[%emt 0:02:28]} Ke7 {[%emt 0:00:56]} 20. Qh4+ {[%emt 0:00:37]} Nf6 {[%emt 0:25:06]} 21. Qxh6 {[%emt 0:15:29]} hxg6 {[%emt 0:01:34]} 22. Qxg6 {[%emt 0:09:17]} Rf8 {[%emt 0:00:34]} 23. g5 {[%emt 0:03:21]} Ne8 {[%emt 0:02:12]} 24. Qh7+ {[%emt 0:03:50]} Kd6 {[%emt 0:01:13]} 25. h4 {[%emt 0:00:44]} Bd7 {[%emt 0:01:19]} 26. Rxf8 {[%emt 0:01:14]} Nxf8 {[%emt 0:00:09]} 27. Qh6+ {[%emt 0:00:11]} Ne6 {[%emt 0:00:28]} 28. Rf1 {[%emt 0:01:47]} Qe7 {[%emt 0:02:42]} 29. e4 {[%emt 0:01:42]} dxe4 {[%emt 0:03:41]} 30. Nxe4+ {[%emt 0:00:04]} Kc7 {[%emt 0:00:02]} 31. g6 {[%emt 0:00:29]} Nd6 {[%emt 0:04:20]} 32. Nc5 {[%emt 0:00:40]} Nxd4 {[%emt 0:01:57]} 33. Qf4 {[%emt 0:00:36]} Ne6 {[%emt 0:01:59]} 34. Nxe6+ {[%emt 0:00:23]} Qxe6 {[%emt 0:00:28]} 35. h5 {[%emt 0:00:32]} Qd5 {[%emt 0:00:41]} 36. Be2 {[%emt 0:01:00]} Re8 {[%emt 0:00:27]} 37. Bf3 {[%emt 0:00:35]} Qc5+ {[%emt 0:00:02]} 38. Kh1 {[%emt 0:00:28]} Re5 {[%emt 0:01:05]} 39. g7 {[%emt 0:00:26]} Rxh5+ {[%emt 0:00:37]} 40. Bxh5 {[%emt 0:00:00]} Qxh5+ {[%emt 0:00:00]} 41. Qh2 {[%emt 0:03:14]} Qd5+ {[%emt 0:05:16]} 42. Qg2 {[%emt 0:03:26]} Be6 {[%emt 0:01:01]} 43. Qxd5 {[%emt 0:09:26]} Bxd5+ {[%emt 0:00:16]} 44. Kh2 {[%emt 0:01:04]} Bxa2 {[%emt 0:07:58]} 45. Kg3 {[%emt 0:03:33]} Ne8 {[%emt 0:02:55]} 46. Re1 {[%emt 0:05:16]} Nf6 {[%emt 0:08:15]} 47. Kh4 {[%emt 0:01:06]} Bd5 {[%emt 0:02:04]} 48. Kg5 {[%emt 0:00:27]} Ng8 {[%emt 0:00:39]} 49. Re8 {[%emt 0:03:53]} Kd7 {[%emt 0:03:52]} 50. Rb8 {[%emt 0:01:22]} c5 {[%emt 0:00:45]} 51. Kf5 {[%emt 0:01:14]} Kc7 {[%emt 0:02:09]} 52. Ra8 {[%emt 0:00:27]} a6 {[%emt 0:00:14]} 53. Ke5 {[%emt 0:00:48]} Bb3 {[%emt 0:00:11]} 54. Rf8 {[%emt 0:00:22]} a5 {[%emt 0:00:53]} 55. Kf5 {[%emt 0:01:47]} a4 {[%emt 0:00:56]} 56. Ra8 {[%emt 0:00:49]} b5 {[%emt 0:01:10]} 57. Kg6 {[%emt 0:00:21]} Kd7 {[%emt 0:00:18]} 58. Kh7 {[%emt 0:00:47]} Nf6+ {[%emt 0:00:08]} 59. Kg6 {[%emt 0:00:10]} Ng8 {[%emt 0:00:25]} 60. Kh7 {[%emt 0:00:12]} Ne7 {[%emt 0:00:30]} 61. Ra7+ {[%emt 0:00:53]} Kd6 {[%emt 0:00:11]} 62. Ra6+ {[%emt 0:00:36]} Ke5 {[%emt 0:00:35]} 63. Ra7 {[%emt 0:00:51]} Kd6 {[%emt 0:01:05]} 64. Ra6+ Ke5 {[%emt 0:00:12]} 65. Ra7 {[%emt 0:00:10]} Kf6 {[%emt 0:01:02]} 66. Rb7 {[%emt 0:01:05]} Bc4 {[%emt 0:00:33]} 67. Rc7 {[%emt 0:00:33]} b4 {[%emt 0:00:33]} 68. Rxc5 {[%emt 0:00:36]} Bg8+ {[%emt 0:00:14]} 69. Kh8 {[%emt 0:00:26]} a3 {[%emt 0:00:18]} 70. bxa3 {[%emt 0:00:19]} bxa3 {[%emt 0:00:01]} 71. Ra5 {[%emt 0:00:34]} a2 {[%emt 0:00:04]} 72. Ra6+ {[%emt 0:00:28]} Ke5 {[%emt 0:00:34]} 73. Ra7 {[%emt 0:00:27]} Kd6 {[%emt 0:00:27]} 74. Ra6+ {[%emt 0:00:32]} Ke5 {[%emt 0:01:38]} 75. Ra5+ {[%emt 0:00:38]} Kf6 {[%emt 0:00:12]} 76. Ra6+ {[%emt 0:00:17]} Kf7 {[%emt 0:01:00]} 77. Ra7 {[%emt 0:00:25]} a1=Q {[%emt 0:00:17]} 0-1

[Event "22nd ETCC Women 2019"]
[Site "Batumi"]
[Date "2019.10.30"]
[Round "6.7"]
[White "Esadze, Tamari"]
[Black "Lanchava, Tea"]
[Result "1-0"]
[ECO "B08"]
[WhiteElo "1885"]
[BlackElo "2236"]
[Annotator "NA"]
[PlyCount "79"]
[EventDate "2019.10.24"]
[EventType "team-tourn"]
[EventCountry "GEO"]
[SourceTitle "playchess.com"]
[Source "ChessBase"]
[SourceQuality "1"]
[WhiteTeam "Georgia"]
[BlackTeam "Netherlands"]
[WhiteTeamCountry "GEO"]
[BlackTeamCountry "NED"]
[TimeControl "40/5400+30:1800+30"]

1. e4 {[%emt 0:00:00]} g6 {[%emt 0:00:00]} 2. d4 {[%emt 0:00:00]} Bg7 {[%emt 0:00:00]} 3. Nc3 {[%emt 0:00:00]} d6 {[%emt 0:00:06]} 4. Nf3 {[%emt 0:00:00]} Nf6 {[%emt 0:00:24]} 5. Be2 {[%emt 0:00:04]} O-O {[%emt 0:00:22]} 6. O-O {[%emt 0:00:27]} c6 {[%emt 0:00:08]} 7. a4 {[%emt 0:00:04]} Qc7 {[%emt 0:01:18]} 8. h3 {[%emt 0:00:30]} e5 {[%emt 0:04:47]} 9. Be3 {[%emt 0:04:24]} Nbd7 {[%emt 0:10:05]} 10. dxe5 {[%emt 0:00:38]} dxe5 {[%emt 0:04:48]} 11. Bc4 {[%emt 0:00:46]} h6 {[%emt 0:02:24]} 12. a5 {[%emt 0:13:18]} Rd8 {[%emt 0:04:00]} 13. Qc1 {[%emt 0:05:48]} g5 {[%emt 0:06:43]} 14. Rd1 {[%emt 0:13:03]} Re8 {[%emt 0:11:45]} 15. h4 {[%emt 0:04:45]} b5 {[%emt 0:08:28]} 16. hxg5 {[%emt 0:17:52]} hxg5 {[%emt 0:01:06]} 17. Bb3 {[%emt 0:00:46]} g4 {[%emt 0:05:20]} 18. Bh6 {[%emt 0:07:25]} Nh7 {[%emt 0:00:46]} 19. Bxg7 {[%emt 0:02:45]} Kxg7 {[%emt 0:03:05]} 20. Ng5 {[%emt 0:02:03]} Re7 {[%emt 0:06:41]} 21. Nxh7 {[%emt 0:10:15]} Kxh7 {[%emt 0:00:44]} 22. Qg5 {[%emt 0:00:52]} Nf8 {[%emt 0:01:21]} 23. g3 {[%emt 0:02:48]} Ng6 {[%emt 0:03:23]} 24. Kg2 {[%emt 0:01:52]} Kg7 {[%emt 0:02:26]} 25. Rh1 {[%emt 0:01:20]} Bd7 {[%emt 0:01:18]} 26. Qh6+ {[%emt 0:01:34]} Kf6 {[%emt 0:00:35]} 27. Rh5 {[%emt 0:00:39]} Rg8 {[%emt 0:09:50]} 28. Rah1 {[%emt 0:01:27]} b4 {[%emt 0:01:33]} 29. Nd1 {[%emt 0:04:06]} Be6 {[%emt 0:00:42]} 30. Ne3 {[%emt 0:01:22]} Bxb3 {[%emt 0:01:01]} 31. Qg5+ {[%emt 0:01:55]} Kg7 {[%emt 0:01:04]} 32. Nf5+ {[%emt 0:01:53]} Kf8 {[%emt 0:00:08]} 33. Qh6+ {[%emt 0:00:06]} Ke8 {[%emt 0:00:23]} 34. Nxe7 {[%emt 0:00:05]} Kxe7 {[%emt 0:01:28]} 35. cxb3 {[%emt 0:00:07]} Qxa5 {[%emt 0:00:40]} 36. Rd1 {[%emt 0:00:50]} Qc7 {[%emt 0:02:06]} 37. Qg5+ {[%emt 0:00:30]} Ke8 {[%emt 0:00:54]} 38. Qf6 {[%emt 0:00:06]} c5 {[%emt 0:00:30]} 39. Rh7 {[%emt 0:00:18]} Rf8 {[%emt 0:00:50]} 40. Qxg6 {[%emt 0:00:00]} 1-0

[Event "22nd ETCC Women 2019"]
[Site "Batumi"]
[Date "2019.10.30"]
[Round "6.8"]
[White "Melia, Salome"]
[Black "Gajcin, Marina"]
[Result "1-0"]
[ECO "B31"]
[WhiteElo "2380"]
[BlackElo "2262"]
[Annotator "NA"]
[PlyCount "83"]
[EventDate "2019.10.24"]
[EventType "team-tourn"]
[EventCountry "GEO"]
[SourceTitle "playchess.com"]
[Source "ChessBase"]
[SourceQuality "1"]
[WhiteTeam "Georgia"]
[BlackTeam "Serbia"]
[WhiteTeamCountry "GEO"]
[BlackTeamCountry "SRB"]
[TimeControl "40/5400+30:1800+30"]

1. e4 {[%emt 0:00:00]} c5 {[%emt 0:00:00]} 2. Nf3 {[%emt 0:00:00]} Nc6 {[%emt 0:00:00]} 3. Bb5 {[%emt 0:00:00]} g6 {[%emt 0:00:00]} 4. Bxc6 {[%emt 0:00:00]} dxc6 {[%emt 0:00:00]} 5. d3 {[%emt 0:00:07]} Bg7 {[%emt 0:00:24]} 6. Nbd2 {[%emt 0:00:21]} Nf6 {[%emt 0:06:57]} 7. a4 {[%emt 0:00:26]} O-O {[%emt 0:10:55]} 8. a5 {[%emt 0:03:15]} Ne8 {[%emt 0:15:27]} 9. h3 {[%emt 0:06:37]} Nc7 {[%emt 0:03:27]} 10. O-O {[%emt 0:00:42]} Ne6 {[%emt 0:05:25]} 11. Nb3 {[%emt 0:05:04]} Qd6 {[%emt 0:03:26]} 12. Nfd2 {[%emt 0:07:43]} f5 {[%emt 0:10:20]} 13. exf5 {[%emt 0:03:46]} Rxf5 {[%emt 0:05:15]} 14. Ne4 {[%emt 0:10:11]} Qc7 {[%emt 0:02:26]} 15. Ng3 {[%emt 0:10:57]} Rf7 {[%emt 0:02:53]} 16. c3 {[%emt 0:03:54]} Rb8 {[%emt 0:05:54]} 17. Ra4 {[%emt 0:03:23]} Be5 {[%emt 0:02:40]} 18. Re4 {[%emt 0:09:13]} Bd6 {[%emt 0:05:53]} 19. Ree1 {[%emt 0:16:03]} b6 {[%emt 0:02:18]} 20. axb6 {[%emt 0:05:42]} axb6 {[%emt 0:00:58]} 21. Ne4 {[%emt 0:04:47]} Be5 {[%emt 0:00:23]} 22. Nbd2 {[%emt 0:01:49]} Nf4 {[%emt 0:06:08]} 23. Nf3 {[%emt 0:03:04]} Bg7 {[%emt 0:02:11]} 24. Neg5 {[%emt 0:00:51]} Rf5 {[%emt 0:01:15]} 25. Bxf4 {[%emt 0:00:46]} Qxf4 {[%emt 0:01:40]} 26. Qb3+ {[%emt 0:03:03]} c4 {[%emt 0:01:09]} 27. Qxc4+ {[%emt 0:00:44]} Qxc4 {[%emt 0:00:04]} 28. dxc4 {[%emt 0:00:03]} Ba6 {[%emt 0:00:15]} 29. Re4 {[%emt 0:00:51]} Rc5 {[%emt 0:00:32]} 30. Ra1 {[%emt 0:00:47]} Bxc4 {[%emt 0:04:26]} 31. b4 {[%emt 0:00:34]} Rxg5 {[%emt 0:00:41]} 32. Nxg5 {[%emt 0:00:39]} Bd5 {[%emt 0:00:03]} 33. Re3 {[%emt 0:00:23]} Rf8 {[%emt 0:01:19]} 34. Ra7 {[%emt 0:00:33]} h6 {[%emt 0:01:10]} 35. Ne6 {[%emt 0:00:31]} Bxe6 {[%emt 0:00:13]} 36. Rxe6 {[%emt 0:00:04]} Bxc3 {[%emt 0:00:10]} 37. Raxe7 {[%emt 0:00:58]} Rf6 {[%emt 0:01:36]} 38. Rxf6 {[%emt 0:00:32]} Bxf6 {[%emt 0:00:01]} 39. Re6 {[%emt 0:00:18]} Kf7 {[%emt 0:00:51]} 40. Rxc6 {[%emt 0:00:00]} Bd8 {[%emt 0:00:00]} 41. b5 {[%emt 0:00:24]} h5 {[%emt 0:01:12]} 42. Kf1 {[%emt 0:00:29]} 1-0

[Event "22nd ETCC Women 2019"]
[Site "Batumi"]
[Date "2019.10.30"]
[Round "6.8"]
[White "Ratsma, Rosa"]
[Black "Donghvani, Nia"]
[Result "1-0"]
[ECO "B72"]
[WhiteElo "2283"]
[BlackElo "1903"]
[Annotator "NA"]
[PlyCount "67"]
[EventDate "2019.10.24"]
[EventType "team-tourn"]
[EventCountry "GEO"]
[SourceTitle "playchess.com"]
[Source "ChessBase"]
[SourceQuality "1"]
[WhiteTeam "Netherlands"]
[BlackTeam "Georgia"]
[WhiteTeamCountry "NED"]
[BlackTeamCountry "GEO"]
[TimeControl "40/5400+30:1800+30"]

1. e4 {[%emt 0:00:00]} c5 {[%emt 0:00:00]} 2. Nf3 {[%emt 0:00:00]} d6 {[%emt 0:00:00]} 3. d4 {[%emt 0:00:00]} cxd4 {[%emt 0:00:00]} 4. Nxd4 {[%emt 0:00:00]} Nf6 {[%emt 0:00:00]} 5. Nc3 {[%emt 0:00:00]} g6 {[%emt 0:00:14]} 6. Be3 {[%emt 0:00:16]} Bg7 {[%emt 0:00:05]} 7. Be2 {[%emt 0:00:08]} O-O {[%emt 0:03:28]} 8. Qd2 {[%emt 0:00:12]} Nc6 {[%emt 0:10:59]} 9. O-O-O {[%emt 0:00:11]} Ng4 {[%emt 0:06:19]} 10. Bxg4 {[%emt 0:00:15]} Bxg4 {[%emt 0:00:07]} 11. f3 {[%emt 0:00:16]} Bd7 {[%emt 0:05:30]} 12. h4 {[%emt 0:00:42]} Ne5 {[%emt 0:02:18]} 13. b3 {[%emt 0:02:21]} Rc8 {[%emt 0:11:20]} 14. Kb1 {[%emt 0:02:53]} f6 {[%emt 0:19:30]} 15. Nce2 {[%emt 0:08:41]} Qe8 {[%emt 0:17:45]} 16. h5 {[%emt 0:05:45]} a5 {[%emt 0:02:54]} 17. hxg6 {[%emt 0:11:08]} hxg6 {[%emt 0:00:07]} 18. Bh6 {[%emt 0:07:36]} Nf7 {[%emt 0:06:37]} 19. Bxg7 {[%emt 0:07:12]} Kxg7 {[%emt 0:00:04]} 20. Nc3 {[%emt 0:11:58]} e5 {[%emt 0:05:22]} 21. Nde2 {[%emt 0:00:56]} a4 {[%emt 0:00:31]} 22. Nd5 {[%emt 0:01:18]} axb3 {[%emt 0:01:38]} 23. Rh7+ {[%emt 0:01:42]} Kxh7 {[%emt 0:01:20]} 24. Nxf6+ {[%emt 0:00:10]} Kg7 {[%emt 0:00:51]} 25. Nxe8+ {[%emt 0:00:08]} Rfxe8 {[%emt 0:00:08]} 26. axb3 {[%emt 0:00:44]} Rc6 {[%emt 0:01:45]} 27. Nc3 {[%emt 0:02:42]} Rh8 {[%emt 0:02:41]} 28. Nd5 {[%emt 0:02:50]} Rh2 {[%emt 0:01:47]} 29. Qf2 {[%emt 0:02:17]} Rh6 {[%emt 0:00:34]} 30. f4 {[%emt 0:01:38]} Bg4 {[%emt 0:00:30]} 31. Rf1 {[%emt 0:00:32]} exf4 32. Qxf4 {[%emt 0:00:13]} Ne5 {[%emt 0:00:58]} 33. Qf8+ {[%emt 0:00:11]} Kh7 {[%emt 0:00:06]} 34. Nf6# 1-0